fUSD/lending_fUSD_20250204
["ID","MTS","AMOUNT","RATE_DAILY","PERIOD"]
[351605796,1738659042193,-500.0,8.657e-05,2]
[351605798,1738659042204,-500.0,8.657e-05,2]
[351605800,1738659042214,-500.0,8.657e-05,2]
[351605802,1738659042223,-500.0,8.657e-05,2]
[351605804,1738659042232,-504.85,8.657e-05,2]
[351605806,1738659042242,-500.0,8.657e-05,2]
[351605808,1738659042251,-500.0,8.657e-05,2]
[351605810,1738659042260,-500.0,8.657e-05,2]
[351605812,1738659042270,-457.2218645,8.657e-05,2]
[351605840,1738659042527,-42.7781355,8.657e-05,2]
[351605842,1738659042538,-500.0,8.657e-05,2]
[351605844,1738659042548,-410.15320417,8.657e-05,2]
[351605847,1738659042559,-407.29679583,8.657e-05,2]
[351605849,1738659042569,-763.1,8.657e-05,2]
[351605850,1738659042581,-1360.07,8.657e-05,2]
[351605852,1738659042591,-500.0,8.657e-05,2]
[351605854,1738659042600,-500.0,8.657e-05,2]
[351605856,1738659042610,-1051.07,8.657e-05,2]
[351605858,1738659042620,-500.0,8.657e-05,2]
[351605860,1738659042629,-500.0,8.657e-05,2]
[351605862,1738659042638,-1446.84,8.657e-05,2]
[351605864,1738659042649,-500.0,8.657e-05,2]
[351605866,1738659042657,-595.7,8.657e-05,2]
[351605868,1738659042666,-2105.06,8.657e-05,2]
[351605870,1738659042676,-500.0,8.657e-05,2]
[351605872,1738659042685,-500.0,8.657e-05,2]
[351605874,1738659042696,-500.0,8.657e-05,2]
[351605876,1738659042707,-667.61,8.657e-05,2]
[351605878,1738659042717,-565.41,8.657e-05,2]
[351605880,1738659042727,-922.07,8.657e-05,2]
[351605882,1738659042736,-544.49,8.657e-05,2]
[351605884,1738659042745,-723.27,8.657e-05,2]
[351605886,1738659042754,-500.0,8.657e-05,2]
[351605888,1738659042763,-697.73,8.657e-05,2]
[351605890,1738659042772,-281.42437469,8.657e-05,2]
[351605892,1738659042780,-331.38868917,8.657e-05,2]
[351605894,1738659042790,-979.21,8.657e-05,2]
[351605896,1738659042799,-500.0,8.658e-05,2]
[351605898,1738659042808,-500.0,8.658e-05,2]
[351605900,1738659042817,-500.0,8.658e-05,2]
[351605902,1738659042826,-502.70068354,8.658e-05,2]
[351605904,1738659042835,-725.51,8.658e-05,2]
[351605906,1738659042844,-500.0,8.658e-05,2]
[351605908,1738659042854,-500.0,8.658e-05,2]
[351605910,1738659042863,-500.0,8.658e-05,2]
[351605912,1738659042873,-607.74,8.658e-05,2]
[351605914,1738659042882,-606.51,8.658e-05,2]
[351605915,1738659042891,-500.0,8.658e-05,2]
[351605918,1738659042901,-772.4,8.658e-05,2]
[351605919,1738659042910,-500.0,8.658e-05,2]
[351605921,1738659042919,-500.0,8.658e-05,2]
[351605923,1738659042928,-500.0,8.658e-05,2]
[351605925,1738659042937,-500.0,8.658e-05,2]
[351605927,1738659042946,-500.0,8.662e-05,2]
[351605929,1738659042956,-500.0,8.662e-05,2]
[351605932,1738659042966,-800.0,8.7e-05,3]
[351605933,1738659042975,-500.0,8.767e-05,2]
[351605936,1738659042984,-225.57188921,8.773e-05,2]
[351605937,1738659042994,-277.21995695,8.773e-05,2]
[351605939,1738659043003,-218.35344339,8.773e-05,2]
[351605941,1738659043012,-963.444264,8.793e-05,2]
[351605943,1738659043021,-978.337735,8.793e-05,2]
[351605945,1738659043030,-990.7,8.793e-05,2]
[351605947,1738659043039,-546.06,8.793e-05,2]
[351605949,1738659043048,-624.04,8.793e-05,2]
[351605951,1738659043058,-500.0,8.793e-05,2]
[351605953,1738659043067,-500.0,8.793e-05,2]
[351605955,1738659043076,-539.29,8.793e-05,2]
[351605957,1738659043085,-500.0,8.793e-05,2]
[351605959,1738659043095,-935.96,8.793e-05,2]
[351605961,1738659043104,-906.57,8.793e-05,2]
[351605965,1738659043113,-879.65,8.793e-05,2]
[351605967,1738659043123,-524.7,8.793e-05,2]
[351605970,1738659043131,-649.05,8.793e-05,2]
[351605973,1738659043140,-614.32,8.793e-05,2]
[351605976,1738659043150,-500.0,8.793e-05,2]
[351605979,1738659043159,-894.71,8.793e-05,2]
[351605981,1738659043168,-740.63,8.793e-05,2]
[351605983,1738659043178,-500.0,8.793e-05,2]
[351605985,1738659043187,-755.16,8.793e-05,2]
[351605987,1738659043196,-500.0,8.793e-05,2]
[351605989,1738659043205,-500.0,8.793e-05,2]
[351605991,1738659043215,-500.0,8.793e-05,2]
[351605994,1738659043224,-500.0,8.793e-05,2]
[351605996,1738659043233,-500.0,8.793e-05,2]
[351605999,1738659043242,-934.87,8.793e-05,2]
[351606002,1738659043251,-500.0,8.793e-05,2]
[351606004,1738659043261,-500.0,8.793e-05,2]
[351606006,1738659043270,-500.0,8.793e-05,2]
[351606009,1738659043280,-587.02,8.793e-05,2]
[351606012,1738659043289,-500.0,8.793e-05,2]
[351606015,1738659043299,-901.9,8.793e-05,2]
[351606019,1738659043308,-500.0,8.793e-05,2]
[351606022,1738659043317,-515.41,8.793e-05,2]
[351606026,1738659043326,-500.0,8.793e-05,2]
[351606030,1738659043336,-760.6,8.793e-05,2]
[351606035,1738659043346,-500.0,8.793e-05,2]
[351606038,1738659043355,-500.0,8.793e-05,2]
[351606040,1738659043364,-856.16,8.793e-05,2]
[351606043,1738659043374,-500.0,8.793e-05,2]
[351606044,1738659043383,-500.0,8.793e-05,2]
[351606046,1738659043393,-730.09,8.793e-05,2]
[351606048,1738659043402,-901.96,8.793e-05,2]
[351606050,1738659043411,-500.0,8.793e-05,2]
[351606052,1738659043420,-520.9,8.793e-05,2]
[351606053,1738659043430,-710.28,8.793e-05,2]
[351606055,1738659043439,-500.0,8.793e-05,2]
[351606058,1738659043448,-500.0,8.793e-05,2]
[351606061,1738659043461,-972.68,8.793e-05,2]
[351606065,1738659043470,-500.0,8.793e-05,2]
[351606068,1738659043479,-500.0,8.793e-05,2]
[351606071,1738659043489,-1084.6,8.793e-05,2]
[351606075,1738659043498,-500.0,8.793e-05,2]
[351606078,1738659043508,-500.0,8.793e-05,2]
[351606081,1738659043517,-500.0,8.793e-05,2]
[351606084,1738659043527,-500.0,8.793e-05,2]
[351606087,1738659043538,-1220.01,8.793e-05,2]
[351606090,1738659043548,-500.0,8.793e-05,2]
[351606092,1738659043558,-500.0,8.793e-05,2]
[351606094,1738659043572,-500.0,8.793e-05,2]
[351606097,1738659043581,-500.0,8.793e-05,2]
[351606098,1738659043590,-677.43,8.793e-05,2]
[351606100,1738659043600,-500.0,8.793e-05,2]
[351606103,1738659043611,-1221.12,8.793e-05,2]
[351606106,1738659043621,-500.0,8.793e-05,2]
[351606110,1738659043631,-482.23285416,8.793e-05,2]
[351606113,1738659043642,-832.4,8.793e-05,2]
[351606116,1738659043654,-584.13,8.793e-05,2]
[351606119,1738659043663,-500.0,8.793e-05,2]
[351606122,1738659043673,-2470.98,8.793e-05,2]
[351606125,1738659043682,-500.0,8.793e-05,2]
[351606128,1738659043691,-500.0,8.793e-05,2]
[351606130,1738659043701,-500.0,8.793e-05,2]
[351606134,1738659043714,-2669.27,8.793e-05,2]
[351606138,1738659043724,-500.0,8.793e-05,2]
[351606140,1738659043734,-725.99,8.793e-05,2]
[351606143,1738659043743,-1964.63,8.793e-05,2]
[351606145,1738659043752,-541.76,8.793e-05,2]
[351606148,1738659043761,-826.82,8.793e-05,2]
[351606151,1738659043770,-1036.53,8.793e-05,2]
[351606154,1738659043780,-547.58,8.793e-05,2]
[351606156,1738659043788,-2025.49,8.793e-05,2]
[351606158,1738659043798,-1294.4,8.793e-05,2]
[351606160,1738659043808,-500.0,8.793e-05,2]
[351606162,1738659043818,-1885.94,8.793e-05,2]
[351606165,1738659043828,-500.0,8.793e-05,2]
[351606167,1738659043838,-500.0,8.793e-05,2]
[351606169,1738659043848,-500.0,8.793e-05,2]
[351606171,1738659043857,-597.54,8.793e-05,2]
[351606173,1738659043869,-500.0,8.793e-05,2]
[351606175,1738659043879,-500.0,8.793e-05,2]
[351606177,1738659043888,-1291.84,8.793e-05,2]
[351606179,1738659043897,-3165.89,8.793e-05,2]
[351606181,1738659043907,-1417.68,8.793e-05,2]
[351606183,1738659043916,-1407.13,8.793e-05,2]
[351606185,1738659043925,-2222.22,8.793e-05,2]
[351606187,1738659043934,-500.0,8.793e-05,2]
[351606189,1738659043944,-1280.22,8.793e-05,2]
[351606191,1738659043955,-1169.4,8.793e-05,2]
[351606193,1738659043964,-1067.6,8.793e-05,2]
[351606195,1738659043974,-500.0,8.793e-05,2]
[351606197,1738659043983,-1259.45,8.793e-05,2]
[351606200,1738659043993,-500.0,8.793e-05,2]
[351606203,1738659044003,-2092.6,8.793e-05,2]
[351606206,1738659044014,-831.16,8.793e-05,2]
[351606209,1738659044024,-987.4,8.793e-05,2]
[351606212,1738659044034,-2120.54,8.793e-05,2]
[351606215,1738659044044,-500.0,8.793e-05,2]
[351606218,1738659044054,-500.0,8.793e-05,2]
[351606220,1738659044064,-500.0,8.793e-05,2]
[351606222,1738659044074,-500.0,8.793e-05,2]
[351606224,1738659044083,-1537.52,8.793e-05,2]
[351606226,1738659044093,-804.18,8.793e-05,2]
[351606228,1738659044102,-500.0,8.793e-05,2]
[351606230,1738659044111,-500.0,8.793e-05,2]
[351606231,1738659044121,-946.55,8.793e-05,2]
[351606233,1738659044131,-500.0,8.793e-05,2]
[351606235,1738659044140,-500.0,8.793e-05,2]
[351606237,1738659044149,-1820.66,8.793e-05,2]
[351606239,1738659044159,-1135.96,8.793e-05,2]
[351606242,1738659044169,-1213.49,8.793e-05,2]
[351606244,1738659044179,-678.56,8.793e-05,2]
[351606245,1738659044189,-590.76,8.793e-05,2]
[351606247,1738659044199,-954.63,8.793e-05,2]
[351606249,1738659044212,-1597.5,8.793e-05,2]
[351606251,1738659044222,-829.82,8.793e-05,2]
[351606253,1738659044231,-890.16,8.793e-05,2]
[351606255,1738659044242,-1731.26,8.793e-05,2]
[351606257,1738659044253,-1004.72,8.793e-05,2]
[351606259,1738659044263,-500.0,8.793e-05,2]
[351606261,1738659044273,-1169.36,8.793e-05,2]
[351606263,1738659044282,-680.73,8.793e-05,2]
[351606265,1738659044291,-1765.12,8.793e-05,2]
[351606267,1738659044301,-500.0,8.793e-05,2]
[351606269,1738659044310,-1212.94,8.793e-05,2]
[351606271,1738659044319,-1701.1,8.793e-05,2]
[351606273,1738659044329,-500.0,8.793e-05,2]
[351606275,1738659044339,-500.0,8.793e-05,2]
[351606277,1738659044348,-500.0,8.793e-05,2]
[351606279,1738659044357,-541.33,8.793e-05,2]
[351606281,1738659044367,-1129.88,8.793e-05,2]
[351606283,1738659044377,-1169.91,8.793e-05,2]
[351606285,1738659044387,-1467.59,8.793e-05,2]
[351606287,1738659044396,-500.0,8.793e-05,2]
[351606289,1738659044406,-617.81,8.793e-05,2]
[351606291,1738659044415,-1197.52,8.793e-05,2]
[351606293,1738659044425,-1873.03,8.793e-05,2]
[351606295,1738659044434,-816.94,8.793e-05,2]
[351606297,1738659044444,-500.0,8.793e-05,2]
[351606299,1738659044454,-1615.98,8.793e-05,2]
[351606302,1738659044466,-910.81,8.793e-05,2]
[351606304,1738659044475,-2106.54,8.793e-05,2]
[351606306,1738659044484,-2491.71,8.793e-05,2]
[351606308,1738659044494,-1880.64,8.793e-05,2]
[351606310,1738659044503,-2080.39,8.793e-05,2]
[351606312,1738659044513,-500.0,8.793e-05,2]
[351606315,1738659044533,-3163.07,8.793e-05,2]
[351606317,1738659044543,-500.0,8.793e-05,2]
[351606319,1738659044553,-1986.0,8.793e-05,2]
[351606321,1738659044564,-1771.76,8.793e-05,2]
[351606323,1738659044578,-3055.65,8.793e-05,2]
[351606325,1738659044587,-500.0,8.793e-05,2]
[351606328,1738659044597,-1002.06,8.793e-05,2]
[351606330,1738659044609,-500.0,8.793e-05,2]
[351606332,1738659044619,-1346.64,8.793e-05,2]
[351606334,1738659044628,-2209.81,8.793e-05,2]
[351606336,1738659044638,-500.0,8.793e-05,2]
[351606338,1738659044649,-937.26,8.793e-05,2]
[351606340,1738659044658,-500.0,8.793e-05,2]
[351606342,1738659044668,-4399.96,8.793e-05,2]
[351606344,1738659044677,-2055.61,8.793e-05,2]
[351606346,1738659044687,-1157.41,8.793e-05,2]
[351606348,1738659044697,-773.7,8.793e-05,2]
[351606350,1738659044709,-1115.74,8.793e-05,2]
[351606352,1738659044720,-500.0,8.793e-05,2]
[351606354,1738659044729,-578.69,8.793e-05,2]
[351606356,1738659044740,-2918.35,8.793e-05,2]
[351606358,1738659044749,-500.0,8.793e-05,2]
[351606360,1738659044760,-1440.13,8.793e-05,2]
[351606362,1738659044770,-870.01,8.793e-05,2]
[351606364,1738659044779,-614.9,8.793e-05,2]
[351606366,1738659044789,-1924.7,8.793e-05,2]
[351606368,1738659044798,-1838.37,8.793e-05,2]
[351606370,1738659044808,-700.89,8.793e-05,2]
[351606372,1738659044818,-534.8,8.793e-05,2]
[351606374,1738659044827,-500.0,8.793e-05,2]
[351606376,1738659044838,-704.75,8.793e-05,2]
[351606379,1738659044849,-500.0,8.793e-05,2]
[351606381,1738659044859,-3539.94,8.793e-05,2]
[351606382,1738659044868,-1792.32,8.793e-05,2]
[351606385,1738659044878,-500.0,8.793e-05,2]
[351606387,1738659044888,-1653.85,8.793e-05,2]
[351606389,1738659044898,-500.0,8.793e-05,2]
[351606391,1738659044908,-500.0,8.793e-05,2]
[351606393,1738659044918,-500.0,8.793e-05,2]
[351606395,1738659044927,-500.0,8.793e-05,2]
[351606397,1738659044937,-1394.82,8.793e-05,2]
[351606399,1738659044948,-2199.97,8.793e-05,2]
[351606401,1738659044959,-1448.06,8.793e-05,2]
[351606403,1738659044969,-500.0,8.793e-05,2]
[351606405,1738659044978,-500.0,8.793e-05,2]
[351606407,1738659044988,-2781.11,8.793e-05,2]
[351606409,1738659044997,-510.25521619,8.793e-05,2]
[351606411,1738659045007,-1495.6,8.793e-05,2]
[351606413,1738659045016,-1042.71,8.793e-05,2]
[351606415,1738659045026,-986.62,8.793e-05,2]
[351606418,1738659045041,-1183.62,8.793e-05,2]
[351606420,1738659045052,-500.0,8.793e-05,2]
[351606422,1738659045063,-500.0,8.793e-05,2]
[351606424,1738659045074,-1625.81,8.793e-05,2]
[351606426,1738659045084,-500.0,8.793e-05,2]
[351606428,1738659045093,-1570.51,8.793e-05,2]
[351606430,1738659045103,-1608.89,8.793e-05,2]
[351606432,1738659045114,-762.08,8.793e-05,2]
[351606434,1738659045124,-2064.94,8.793e-05,2]
[351606437,1738659045135,-500.0,8.793e-05,2]
[351606439,1738659045145,-819.41,8.793e-05,2]
[351606441,1738659045156,-1684.69,8.793e-05,2]
[351606443,1738659045165,-1471.89,8.793e-05,2]
[351606445,1738659045176,-1525.66,8.793e-05,2]
[351606447,1738659045186,-551.96,8.793e-05,2]
[351606449,1738659045195,-500.0,8.793e-05,2]
[351606451,1738659045207,-1672.78,8.793e-05,2]
[351606453,1738659045216,-2878.89,8.793e-05,2]
[351606455,1738659045226,-527.26,8.793e-05,2]
[351606457,1738659045236,-500.0,8.793e-05,2]
[351606459,1738659045247,-1314.32,8.793e-05,2]
[351606461,1738659045257,-500.0,8.793e-05,2]
[351606463,1738659045267,-903.22,8.793e-05,2]
[351606465,1738659045277,-500.0,8.793e-05,2]
[351606467,1738659045287,-1188.41,8.793e-05,2]
[351606469,1738659045296,-678.85,8.793e-05,2]
[351606471,1738659045305,-500.0,8.793e-05,2]
[351606474,1738659045316,-1605.87,8.793e-05,2]
[351606476,1738659045325,-500.0,8.793e-05,2]
[351606478,1738659045335,-813.37,8.793e-05,2]
[351606480,1738659045345,-596.56,8.793e-05,2]
[351606482,1738659045354,-500.0,8.793e-05,2]
[351606484,1738659045364,-500.0,8.793e-05,2]
[351606519,1738659045374,-500.0,8.793e-05,2]
[351606522,1738659045723,-1547.76,8.793e-05,2]
[351606524,1738659045734,-500.0,8.793e-05,2]
[351606526,1738659045744,-674.94,8.793e-05,2]
[351606528,1738659045754,-689.9,8.793e-05,2]
[351606530,1738659045764,-728.98,8.793e-05,2]
[351606532,1738659045773,-1928.89,8.793e-05,2]
[351606534,1738659045787,-500.0,8.793e-05,2]
[351606536,1738659045798,-396.42619508,8.793e-05,2]
[351606538,1738659045808,-996.51,8.793e-05,2]
[351606541,1738659045819,-1193.27,8.793e-05,2]
[351606543,1738659045828,-1641.67,8.793e-05,2]
[351606544,1738659045838,-1020.73,8.793e-05,2]
[351606547,1738659045847,-551.94,8.793e-05,2]
[351606549,1738659045857,-428.02470198,8.793e-05,2]
[351606551,1738659045867,-500.0,8.793e-05,2]
[351606552,1738659045875,-1762.05,8.793e-05,2]
[351606554,1738659045886,-1234.33,8.793e-05,2]
[351606557,1738659045897,-1084.49,8.793e-05,2]
[351606558,1738659045907,-500.0,8.793e-05,2]
[351606559,1738659045916,-500.0,8.793e-05,2]
[351606560,1738659045925,-928.63,8.793e-05,2]
[351606561,1738659045934,-500.0,8.793e-05,2]
[351606562,1738659045943,-304.2246319,8.794e-05,2]
[351606563,1738659045953,-500.0,8.794e-05,2]
[351606564,1738659045965,-500.0,8.794e-05,2]
[351606565,1738659045974,-566.41,8.794e-05,2]
[351606566,1738659045984,-500.0,8.794e-05,2]
[351606567,1738659045994,-500.0,8.794e-05,2]
[351606568,1738659046003,-500.0,8.794e-05,2]
[351606570,1738659046012,-500.0,8.794e-05,2]
[351606572,1738659046022,-500.0,8.794e-05,2]
[351606574,1738659046031,-500.0,8.794e-05,2]
[351606576,1738659046040,-500.0,8.794e-05,2]
[351606578,1738659046050,-500.0,8.794e-05,2]
[351606580,1738659046059,-500.0,8.794e-05,2]
[351606582,1738659046068,-500.0,8.794e-05,2]
[351606585,1738659046078,-500.0,8.794e-05,2]
[351606588,1738659046087,-685.91,8.794e-05,2]
[351606591,1738659046096,-500.0,8.794e-05,2]
[351606594,1738659046106,-510.99,8.794e-05,2]
[351606596,1738659046115,-500.0,8.794e-05,2]
[351606599,1738659046125,-1166.65,8.794e-05,2]
[351606601,1738659046135,-500.0,8.794e-05,2]
[351606604,1738659046144,-500.0,8.794e-05,2]
[351606608,1738659046154,-775.45,8.794e-05,2]
[351606610,1738659046164,-500.0,8.794e-05,2]
[351606612,1738659046174,-500.0,8.794e-05,2]
[351606615,1738659046183,-500.0,8.794e-05,2]
[351606617,1738659046192,-500.0,8.794e-05,2]
[351606618,1738659046201,-500.0,8.794e-05,2]
[351606620,1738659046213,-500.0,8.794e-05,2]
[351606624,1738659046223,-605.88094924,8.794e-05,2]
[351606627,1738659046232,-500.0,8.794e-05,2]
[351606630,1738659046241,-653.58,8.794e-05,2]
[351606632,1738659046251,-1240.55,8.794e-05,2]
[351606634,1738659046261,-500.0,8.794e-05,2]
[351606637,1738659046271,-723.78,8.794e-05,2]
[351606639,1738659046280,-500.0,8.794e-05,2]
[351606641,1738659046289,-500.0,8.794e-05,2]
[351606643,1738659046298,-822.46,8.794e-05,2]
[351606645,1738659046307,-500.0,8.794e-05,2]
[351606647,1738659046316,-611.88,8.794e-05,2]
[351606649,1738659046326,-500.0,8.794e-05,2]
[351606651,1738659046335,-500.0,8.794e-05,2]
[351606654,1738659046344,-727.75,8.794e-05,2]
[351606655,1738659046353,-500.0,8.794e-05,2]
[351606658,1738659046362,-500.0,8.794e-05,2]
[351606660,1738659046372,-500.0,8.794e-05,2]
[351606662,1738659046381,-500.0,8.794e-05,2]
[351606664,1738659046391,-500.0,8.794e-05,2]
[351606667,1738659046400,-500.0,8.794e-05,2]
[351606669,1738659046410,-500.0,8.794e-05,2]
[351606671,1738659046419,-885.17,8.794e-05,2]
[351606673,1738659046428,-563.87,8.794e-05,2]
[351606675,1738659046438,-500.0,8.794e-05,2]
[351606677,1738659046447,-500.0,8.794e-05,2]
[351606680,1738659046465,-1395.28,8.794e-05,2]
[351606682,1738659046477,-500.0,8.794e-05,2]
[351606684,1738659046487,-500.0,8.794e-05,2]
[351606686,1738659046497,-689.96,8.794e-05,2]
[351606688,1738659046507,-547.65,8.794e-05,2]
[351606690,1738659046517,-500.0,8.794e-05,2]
[351606692,1738659046527,-500.0,8.794e-05,2]
[351606695,1738659046538,-500.0,8.794e-05,2]
[351606697,1738659046548,-500.0,8.794e-05,2]
[351606699,1738659046558,-558.84,8.794e-05,2]
[351606701,1738659046569,-902.37,8.794e-05,2]
[351606703,1738659046581,-1086.58,8.794e-05,2]
[351606705,1738659046591,-500.0,8.794e-05,2]
[351606707,1738659046602,-159.37632379,8.794e-05,2]
[351606709,1738659046612,-1917.84,8.794e-05,2]
[351606711,1738659046622,-580.54,8.794e-05,2]
[351606713,1738659046632,-594.32,8.794e-05,2]
[351606715,1738659046641,-500.0,8.794e-05,2]
[351606717,1738659046652,-1563.74,8.794e-05,2]
[351606719,1738659046663,-932.76,8.794e-05,2]
[351606721,1738659046673,-500.0,8.794e-05,2]
[351606723,1738659046683,-1076.58,8.794e-05,2]
[351606726,1738659046693,-633.59,8.794e-05,2]
[351606728,1738659046703,-500.0,8.794e-05,2]
[351606730,1738659046715,-792.01,8.794e-05,2]
[351606732,1738659046726,-642.67,8.794e-05,2]
[351606734,1738659046735,-500.0,8.794e-05,2]
[351606736,1738659046746,-745.1,8.794e-05,2]
[351606738,1738659046758,-625.6,8.794e-05,2]
[351606740,1738659046768,-557.70292309,8.794e-05,2]
[351606742,1738659046777,-500.0,8.794e-05,2]
[351606744,1738659046788,-969.22,8.794e-05,2]
[351606746,1738659046798,-500.0,8.794e-05,2]
[351606748,1738659046809,-693.63,8.794e-05,2]
[351606750,1738659046819,-500.0,8.794e-05,2]
[351606752,1738659046829,-712.12,8.794e-05,2]
[351606754,1738659046839,-374.66504243,8.794e-05,2]
[351606756,1738659046849,-500.0,8.794e-05,2]
[351606758,1738659046860,-500.0,8.794e-05,2]
[351606760,1738659046870,-1237.24,8.794e-05,2]
[351606761,1738659046880,-368.0763465,8.794e-05,2]
[351606762,1738659046890,-950.74,8.794e-05,2]
[351606763,1738659046900,-500.0,8.794e-05,2]
[351606764,1738659046910,-1159.9,8.794e-05,2]
[351606765,1738659046921,-817.08,8.794e-05,2]
[351606766,1738659046931,-938.99,8.794e-05,2]
[351606767,1738659046941,-500.0,8.794e-05,2]
[351606768,1738659046951,-1012.45,8.794e-05,2]
[351606769,1738659046963,-500.0,8.794e-05,2]
[351606770,1738659046974,-516.99,8.794e-05,2]
[351606772,1738659046985,-500.0,8.794e-05,2]
[351606774,1738659046994,-500.0,8.794e-05,2]
[351606776,1738659047004,-505.82,8.794e-05,2]
[351606778,1738659047014,-773.66,8.794e-05,2]
[351606780,1738659047024,-500.0,8.794e-05,2]
[351606782,1738659047033,-973.22,8.794e-05,2]
[351606784,1738659047043,-1203.37,8.794e-05,2]
[351606786,1738659047053,-500.0,8.794e-05,2]
[351606788,1738659047063,-1000.15,8.794e-05,2]
[351606790,1738659047074,-1176.01,8.794e-05,2]
[351606792,1738659047085,-500.0,8.794e-05,2]
[351606794,1738659047095,-562.75,8.794e-05,2]
[351606796,1738659047105,-1420.91,8.794e-05,2]
[351606799,1738659047115,-1644.49,8.794e-05,2]
[351606801,1738659047124,-500.0,8.794e-05,2]
[351606803,1738659047134,-655.98,8.794e-05,2]
[351606805,1738659047144,-576.3,8.794e-05,2]
[351606807,1738659047154,-1075.32,8.794e-05,2]
[351606809,1738659047164,-651.71,8.794e-05,2]
[351606811,1738659047174,-579.3,8.794e-05,2]
[351606813,1738659047184,-880.43,8.794e-05,2]
[351606815,1738659047195,-500.0,8.794e-05,2]
[351606816,1738659047204,-755.35,8.794e-05,2]
[351606817,1738659047216,-1559.02,8.794e-05,2]
[351606818,1738659047226,-1493.35,8.794e-05,2]
[351606819,1738659047235,-642.56,8.794e-05,2]
[351606820,1738659047246,-500.0,8.794e-05,2]
[351606821,1738659047255,-500.0,8.794e-05,2]
[351606822,1738659047266,-657.7,8.794e-05,2]
[351606823,1738659047275,-1469.66,8.794e-05,2]
[351606824,1738659047285,-788.81,8.794e-05,2]
[351606825,1738659047295,-500.0,8.794e-05,2]
[351606826,1738659047309,-885.84,8.794e-05,2]
[351606827,1738659047319,-1700.05,8.794e-05,2]
[351606828,1738659047330,-500.0,8.794e-05,2]
[351606829,1738659047340,-1272.46,8.794e-05,2]
[351606830,1738659047350,-500.0,8.794e-05,2]
[351606831,1738659047360,-500.0,8.794e-05,2]
[351606832,1738659047372,-760.04,8.794e-05,2]
[351606833,1738659047382,-500.0,8.794e-05,2]
[351606834,1738659047392,-980.16,8.794e-05,2]
[351606835,1738659047402,-500.0,8.794e-05,2]
[351606836,1738659047412,-577.94,8.794e-05,2]
[351606837,1738659047422,-902.01,8.794e-05,2]
[351606838,1738659047432,-1053.0,8.794e-05,2]
[351606839,1738659047442,-500.0,8.794e-05,2]
[351606840,1738659047452,-914.23,8.794e-05,2]
[351606841,1738659047463,-1183.19,8.794e-05,2]
[351606842,1738659047473,-500.0,8.794e-05,2]
[351606843,1738659047484,-1396.28,8.794e-05,2]
[351606844,1738659047494,-500.0,8.794e-05,2]
[351606845,1738659047503,-500.0,8.794e-05,2]
[351606846,1738659047514,-500.0,8.794e-05,2]
[351606847,1738659047524,-1025.17,8.794e-05,2]
[351606848,1738659047534,-1130.98,8.794e-05,2]
[351606849,1738659047544,-500.0,8.794e-05,2]
[351606850,1738659047554,-529.23,8.794e-05,2]
[351606852,1738659047565,-715.91,8.794e-05,2]
[351606854,1738659047578,-551.61,8.794e-05,2]
[351606856,1738659047588,-500.0,8.794e-05,2]
[351606858,1738659047598,-500.0,8.794e-05,2]
[351606860,1738659047610,-522.57,8.794e-05,2]
[351606862,1738659047620,-644.82,8.794e-05,2]
[351606865,1738659047630,-500.0,8.794e-05,2]
[351606867,1738659047641,-877.22,8.794e-05,2]
[351606869,1738659047651,-500.0,8.794e-05,2]
[351606870,1738659047661,-500.0,8.794e-05,2]
[351606871,1738659047672,-500.0,8.794e-05,2]
[351606872,1738659047682,-500.0,8.794e-05,2]
[351606873,1738659047692,-500.0,8.794e-05,2]
[351606875,1738659047702,-500.0,8.794e-05,2]
[351606877,1738659047713,-500.0,8.794e-05,2]
[351606879,1738659047722,-500.0,8.794e-05,2]
[351606881,1738659047732,-1262.84,8.794e-05,2]